Workbook

Sheet Sheet1
A1: 2017年无锡市教育局直属学校（含代管学校）公开招聘幼儿教师成绩公告
A3: 准考证号 | B3: 报考学校 | C3: 岗位代码 | D3: 岗位名称 | E3: 笔试成绩 | F3: 技能成绩 | G3: 面试成绩 | H3: 总成绩 | I3: 排名 | J3: 是否进入体检 | K3: 备注
A4: 17052100129 | B4: 无锡市朗诗新郡幼儿园（筹） | C4: 21 | D4: 幼儿教师 | E4: 66.4 | F4: 81.6 | G4: 83 | H4: =E4*0.3+F4*0.3+G4*0.4 -> 77.6 | I4: 1 | J4: 是
A5: 17052200390 | B5: 无锡市朗诗新郡幼儿园（筹） | C5: 21 | D5: 幼儿教师 | E5: 64.2 | F5: 84.2 | G5: 81.4 | H5: =E5*0.3+F5*0.3+G5*0.4 -> 77.08 | I5: 2 | J5: 是
A6: 17052100074 | B6: 无锡市朗诗新郡幼儿园（筹） | C6: 21 | D6: 幼儿教师 | E6: 66.1 | F6: 82 | G6: 79 | H6: =E6*0.3+F6*0.3+G6*0.4 -> 76.03 | I6: 3 | J6: 是
A7: 17052000044 | B7: 无锡市朗诗新郡幼儿园（筹） | C7: 21 | D7: 幼儿教师 | E7: 64.1 | F7: 73.8 | G7: 77.4 | H7: =E7*0.3+F7*0.3+G7*0.4 -> 72.33 | I7: 4 | J7: 是
A8: 17052100266 | B8: 无锡市朗诗新郡幼儿园（筹） | C8: 21 | D8: 幼儿教师 | E8: 70.7 | F8: 76.2 | G8: 68.4 | H8: =E8*0.3+F8*0.3+G8*0.4 -> 71.43 | I8: 5 | J8: 是
A9: 17052000324 | B9: 无锡市朗诗新郡幼儿园（筹） | C9: 21 | D9: 幼儿教师 | E9: 65.4 | F9: 71.6 | G9: 67.6 | H9: =E9*0.3+F9*0.3+G9*0.4 -> 68.14 | I9: 6 | J9: 否
A10: 17052400034 | B10: 无锡市朗诗新郡幼儿园（筹） | C10: 21 | D10: 幼儿教师 | E10: 70.8 | F10: 65.8 | G10: 65 | H10: =E10*0.3+F10*0.3+G10*0.4 -> 66.98 | I10: 7 | J10: 否
A11: 17052000273 | B11: 无锡市朗诗新郡幼儿园（筹） | C11: 21 | D11: 幼儿教师 | E11: 63.7 | F11: 63.2 | G11: 70.2 | H11: =E11*0.3+F11*0.3+G11*0.4 -> 66.15 | I11: 8 | J11: 否
A12: 17052400129 | B12: 无锡市朗诗新郡幼儿园（筹） | C12: 21 | D12: 幼儿教师 | E12: 70.6 | F12: 63.2 | G12: 63.2 | H12: =E12*0.3+F12*0.3+G12*0.4 -> 65.42 | I12: 9 | J12: 否
A13: 17052400045 | B13: 无锡市朗诗新郡幼儿园（筹） | C13: 21 | D13: 幼儿教师 | E13: 64.5 | F13: 72 | G13: 56.4 | H13: =E13*0.3+F13*0.3+G13*0.4 -> 63.51 | I13: 10 | J13: 否 | K13: 面试成绩未达60分，直接淘汰。
A14: 17052100369 | B14: 无锡市雅居乐幼儿园（筹） | C14: 22 | D14: 幼儿教师A | E14: 79.8 | F14: 80.8 | G14: 83.8 | H14: =E14*0.3+F14*0.3+G14*0.4 -> 81.7 | I14: 1 | J14: 是
A15: 17052000310 | B15: 无锡市雅居乐幼儿园（筹） | C15: 22 | D15: 幼儿教师A | E15: 65.1 | F15: 82.8 | G15: 85 | H15: =E15*0.3+F15*0.3+G15*0.4 -> 78.37 | I15: 2 | J15: 是
A16: 17052000538 | B16: 无锡市雅居乐幼儿园（筹） | C16: 22 | D16: 幼儿教师A | E16: 63.3 | F16: 76.8 | G16: 87.2 | H16: =E16*0.3+F16*0.3+G16*0.4 -> 76.91 | I16: 3 | J16: 是
A17: 17052000072 | B17: 无锡市雅居乐幼儿园（筹） | C17: 22 | D17: 幼儿教师A | E17: 65.6 | F17: 75.4 | G17: 75.8 | H17: =E17*0.3+F17*0.3+G17*0.4 -> 72.62 | I17: 4 | J17: 是
A18: 17052100079 | B18: 无锡市雅居乐幼儿园（筹） | C18: 22 | D18: 幼儿教师A | E18: 72.4 | F18: 66 | G18: 76.8 | H18: =E18*0.3+F18*0.3+G18*0.4 -> 72.24 | I18: 5 | J18: 是
A19: 17052000235 | B19: 无锡市雅居乐幼儿园（筹） | C19: 22 | D19: 幼儿教师A | E19: 70.2 | F19: 63 | G19: 74 | H19: =E19*0.3+F19*0.3+G19*0.4 -> 69.56 | I19: 6 | J19: 否
A20: 17052000246 | B20: 无锡市雅居乐幼儿园（筹） | C20: 22 | D20: 幼儿教师A | E20: 65.8 | F20: 63.2 | G20: 76.4 | H20: =E20*0.3+F20*0.3+G20*0.4 -> 69.26 | I20: 7 | J20: 否
A21: 17052200118 | B21: 无锡市雅居乐幼儿园（筹） | C21: 22 | D21: 幼儿教师A | E21: 64 | F21: 72.2 | G21: 67 | H21: =E21*0.3+F21*0.3+G21*0.4 -> 67.66 | I21: 8 | J21: 否
A22: 17052000251 | B22: 无锡市雅居乐幼儿园（筹） | C22: 22 | D22: 幼儿教师A | E22: 67.9 | F22: 61.2 | G22: 66.6 | H22: =E22*0.3+F22*0.3+G22*0.4 -> 65.37 | I22: 9 | J22: 否
A23: 17052000084 | B23: 无锡市雅居乐幼儿园（筹） | C23: 22 | D23: 幼儿教师A | E23: 64.3 | F23: 68.8 | G23: 62.8 | H23: =E23*0.3+F23*0.3+G23*0.4 -> 65.05 | I23: 10 | J23: 否
A24: 17052000050 | B24: 无锡市雅居乐幼儿园（筹） | C24: 22 | D24: 幼儿教师A | E24: 63.8 | F24: 61.8 | G24: 67 | H24: =E24*0.3+F24*0.3+G24*0.4 -> 64.48 | I24: 11 | J24: 否
A25: 17052300069 | B25: 无锡市雅居乐幼儿园（筹） | C25: 23 | D25: 幼儿教师B | E25: 75.2 | F25: 82.4 | G25: 81.4 | H25: =E25*0.3+F25*0.3+G25*0.4 -> 79.84 | I25: 1 | J25: 是
A26: 17052100116 | B26: 无锡市雅居乐幼儿园（筹） | C26: 23 | D26: 幼儿教师B | E26: 66.1 | F26: 77.4 | G26: 84.4 | H26: =E26*0.3+F26*0.3+G26*0.4 -> 76.81 | I26: 2 | J26: 是
A27: 17052200040 | B27: 无锡市雅居乐幼儿园（筹） | C27: 23 | D27: 幼儿教师B | E27: 69.1 | F27: 61.6 | G27: 83.8 | H27: =E27*0.3+F27*0.3+G27*0.4 -> 72.73 | I27: 3 | J27: 是
A28: 17052000046 | B28: 无锡市雅居乐幼儿园（筹） | C28: 23 | D28: 幼儿教师B | E28: 67.8 | F28: 67 | G28: 73.6 | H28: =E28*0.3+F28*0.3+G28*0.4 -> 69.88 | I28: 4 | J28: 是
A29: 17052000394 | B29: 无锡市雅居乐幼儿园（筹） | C29: 23 | D29: 幼儿教师B | E29: 69.4 | F29: 63 | G29: 75 | H29: =E29*0.3+F29*0.3+G29*0.4 -> 69.72 | I29: 5 | J29: 是
A30: 17052200365 | B30: 无锡市雅居乐幼儿园（筹） | C30: 23 | D30: 幼儿教师B | E30: 70.2 | F30: 73.2 | G30: 66.4 | H30: =E30*0.3+F30*0.3+G30*0.4 -> 69.58 | I30: 6 | J30: 否
A31: 17052400177 | B31: 无锡市雅居乐幼儿园（筹） | C31: 23 | D31: 幼儿教师B | E31: 69.5 | F31: 66 | G31: 72.2 | H31: =E31*0.3+F31*0.3+G31*0.4 -> 69.53 | I31: 7 | J31: 否
A32: 17052100373 | B32: 无锡市雅居乐幼儿园（筹） | C32: 23 | D32: 幼儿教师B | E32: 70.8 | F32: 64.4 | G32: 71 | H32: =E32*0.3+F32*0.3+G32*0.4 -> 68.96 | I32: 8 | J32: 否
A33: 17052200219 | B33: 无锡市雅居乐幼儿园（筹） | C33: 23 | D33: 幼儿教师B | E33: 65.9 | F33: 62 | G33: 67.2 | H33: =E33*0.3+F33*0.3+G33*0.4 -> 65.25 | I33: 9 | J33: 否
A34: 17052300038 | B34: 无锡市雅居乐幼儿园（筹） | C34: 23 | D34: 幼儿教师B | E34: 65.1 | F34: 60.2 | G34: 64.6 | H34: =E34*0.3+F34*0.3+G34*0.4 -> 63.43 | I34: 10 | J34: 否
A35: 17052000009 | B35: 无锡市海岸城幼儿园（筹） | C35: 24 | D35: 幼儿教师A | E35: 77.5 | F35: 77.6 | G35: 82.8 | H35: =E35*0.3+F35*0.3+G35*0.4 -> 79.65 | I35: 1 | J35: 是
A36: 17052100313 | B36: 无锡市海岸城幼儿园（筹） | C36: 24 | D36: 幼儿教师A | E36: 74.6 | F36: 83.6 | G36: 70 | H36: =E36*0.3+F36*0.3+G36*0.4 -> 75.46 | I36: 2 | J36: 是
A37: 17052000255 | B37: 无锡市海岸城幼儿园（筹） | C37: 24 | D37: 幼儿教师A | E37: 65.5 | F37: 82.6 | G37: 77.4 | H37: =E37*0.3+F37*0.3+G37*0.4 -> 75.39 | I37: 3 | J37: 是
A38: 17052200016 | B38: 无锡市海岸城幼儿园（筹） | C38: 24 | D38: 幼儿教师A | E38: 65.8 | F38: 81 | G38: 77.8 | H38: =E38*0.3+F38*0.3+G38*0.4 -> 75.16 | I38: 4 | J38: 是
A39: 17052100328 | B39: 无锡市海岸城幼儿园（筹） | C39: 24 | D39: 幼儿教师A | E39: 69.9 | F39: 74.2 | G39: 78.8 | H39: =E39*0.3+F39*0.3+G39*0.4 -> 74.75 | I39: 5 | J39: 是
A40: 17052300031 | B40: 无锡市海岸城幼儿园（筹） | C40: 24 | D40: 幼儿教师A | E40: 66.6 | F40: 73 | G40: 79.4 | H40: =E40*0.3+F40*0.3+G40*0.4 -> 73.64 | I40: 6 | J40: 是
A41: 17052000150 | B41: 无锡市海岸城幼儿园（筹） | C41: 24 | D41: 幼儿教师A | E41: 69.3 | F41: 82.2 | G41: 69.4 | H41: =E41*0.3+F41*0.3+G41*0.4 -> 73.21 | I41: 7 | J41: 是
A42: 17052200012 | B42: 无锡市海岸城幼儿园（筹） | C42: 24 | D42: 幼儿教师A | E42: 72.2 | F42: 68.8 | G42: 76.8 | H42: =E42*0.3+F42*0.3+G42*0.4 -> 73.02 | I42: 8 | J42: 否
A43: 17052200381 | B43: 无锡市海岸城幼儿园（筹） | C43: 24 | D43: 幼儿教师A | E43: 65.6 | F43: 74.2 | G43: 77.2 | H43: =E43*0.3+F43*0.3+G43*0.4 -> 72.82 | I43: 9 | J43: 否
A44: 17052200208 | B44: 无锡市海岸城幼儿园（筹） | C44: 24 | D44: 幼儿教师A | E44: 68.8 | F44: 76 | G44: 71.4 | H44: =E44*0.3+F44*0.3+G44*0.4 -> 72 | I44: 10 | J44: 否
A45: 17052000199 | B45: 无锡市海岸城幼儿园（筹） | C45: 24 | D45: 幼儿教师A | E45: 65.9 | F45: 79.4 | G45: 70.4 | H45: =E45*0.3+F45*0.3+G45*0.4 -> 71.75 | I45: 11 | J45: 否
A46: 17052300329 | B46: 无锡市海岸城幼儿园（筹） | C46: 24 | D46: 幼儿教师A | E46: 68.3 | F46: 68 | G46: 72.8 | H46: =E46*0.3+F46*0.3+G46*0.4 -> 70.01 | I46: 12 | J46: 否
A47: 17052100264 | B47: 无锡市海岸城幼儿园（筹） | C47: 24 | D47: 幼儿教师A | E47: 68.3 | F47: 72.8 | G47: 68.6 | H47: =E47*0.3+F47*0.3+G47*0.4 -> 69.77 | I47: 13 | J47: 否
A48: 17052000179 | B48: 无锡市海岸城幼儿园（筹） | C48: 24 | D48: 幼儿教师A | E48: 69 | F48: 69.4 | G48: 68.6 | H48: =E48*0.3+F48*0.3+G48*0.4 -> 68.96 | I48: 14 | J48: 否
A49: 17052000182 | B49: 无锡市海岸城幼儿园（筹） | C49: 24 | D49: 幼儿教师A | E49: 71.6 | F49: 65.2 | G49: 67.2 | H49: =E49*0.3+F49*0.3+G49*0.4 -> 67.92 | I49: 15 | J49: 否
A50: 17052300020 | B50: 无锡市海岸城幼儿园（筹） | C50: 24 | D50: 幼儿教师A | E50: 69.1 | F50: 70.6 | G50: 64.4 | H50: =E50*0.3+F50*0.3+G50*0.4 -> 67.67 | I50: 16 | J50: 否
A51: 17052000085 | B51: 无锡市海岸城幼儿园（筹） | C51: 25 | D51: 幼儿教师B | E51: 61.8 | F51: 68.2 | G51: 75.6 | H51: =E51*0.3+F51*0.3+G51*0.4 -> 69.24 | I51: 1 | J51: 是
A52: 17052200205 | B52: 无锡市海岸城幼儿园（筹） | C52: 25 | D52: 幼儿教师B | E52: 61 | F52: 65.8 | G52: 77.4 | H52: =E52*0.3+F52*0.3+G52*0.4 -> 69 | I52: 2 | J52: 是
A53: 17052000107 | B53: 无锡市海岸城幼儿园（筹） | C53: 25 | D53: 幼儿教师B | E53: 65.9 | F53: 63 | G53: 73.6 | H53: =E53*0.3+F53*0.3+G53*0.4 -> 68.11 | I53: 3 | J53: 是
A54: 17052000386 | B54: 无锡市海岸城幼儿园（筹） | C54: 26 | D54: 幼儿教师C | E54: 68.8 | F54: 84.6 | G54: 79.6 | H54: =E54*0.3+F54*0.3+G54*0.4 -> 77.86 | I54: 1 | J54: 是
A55: 17052200263 | B55: 无锡市海岸城幼儿园（筹） | C55: 26 | D55: 幼儿教师C | E55: 71.9 | F55: 82.8 | G55: 72.8 | H55: =E55*0.3+F55*0.3+G55*0.4 -> 75.53 | I55: 2 | J55: 是
A56: 17052200021 | B56: 无锡市海岸城幼儿园（筹） | C56: 26 | D56: 幼儿教师C | E56: 66 | F56: 76.2 | G56: 81.8 | H56: =E56*0.3+F56*0.3+G56*0.4 -> 75.38 | I56: 3 | J56: 是
A57: 17052000291 | B57: 无锡市海岸城幼儿园（筹） | C57: 26 | D57: 幼儿教师C | E57: 64.5 | F57: 77.2 | G57: 80 | H57: =E57*0.3+F57*0.3+G57*0.4 -> 74.51 | I57: 4 | J57: 是
A58: 17052100409 | B58: 无锡市海岸城幼儿园（筹） | C58: 26 | D58: 幼儿教师C | E58: 65.6 | F58: 76.6 | G58: 78.8 | H58: =E58*0.3+F58*0.3+G58*0.4 -> 74.18 | I58: 5 | J58: 否
A59: 17052200148 | B59: 无锡市海岸城幼儿园（筹） | C59: 26 | D59: 幼儿教师C | E59: 69 | F59: 88.4 | G59: 65.2 | H59: =E59*0.3+F59*0.3+G59*0.4 -> 73.3 | I59: 6 | J59: 否
A60: 17052100363 | B60: 无锡市海岸城幼儿园（筹） | C60: 26 | D60: 幼儿教师C | E60: 67.4 | F60: 68.8 | G60: 73.4 | H60: =E60*0.3+F60*0.3+G60*0.4 -> 70.22 | I60: 7 | J60: 否
A61: 17052000194 | B61: 无锡市海岸城幼儿园（筹） | C61: 26 | D61: 幼儿教师C | E61: 64.4 | F61: 72.8 | G61: 72.4 | H61: =E61*0.3+F61*0.3+G61*0.4 -> 70.12 | I61: 8 | J61: 否
A62: 17052100387 | B62: 无锡市海岸城幼儿园（筹） | C62: 26 | D62: 幼儿教师C | E62: 68 | F62: 65.4 | G62: 70.4 | H62: =E62*0.3+F62*0.3+G62*0.4 -> 68.18 | I62: 9 | J62: 否
A63: 17052000308 | B63: 无锡市海岸城幼儿园（筹） | C63: 26 | D63: 幼儿教师C | E63: 70.3 | F63: 65 | G63: 63 | H63: =E63*0.3+F63*0.3+G63*0.4 -> 65.79 | I63: 10 | J63: 否
A64: 17052200339 | B64: 无锡市海岸城幼儿园（筹） | C64: 26 | D64: 幼儿教师C | E64: 66.5 | F64: 69 | G64: 60.8 | H64: =E64*0.3+F64*0.3+G64*0.4 -> 64.97 | I64: 11 | J64: 否
